bitfinex/quotes_SOLUSD_20240926
["timestamp","ask_amount","ask_price","bid_price","bid_amount"]
[1727336765198,0.2,151.55,151.54,6.5989]
[1727336766107,0.2,151.55,151.54,7.91845073]
[1727336767104,0.2,151.55,151.54,6.5989]
[1727336769503,0.2,151.55,151.54,7.91852602]
[1727336770191,0.2,151.55,151.54,21.33959326]
[1727336771304,0.2,151.55,151.54,21.33953372]
[1727336772577,0.2,151.55,151.54,20.01996724]
[1727336773082,0.2,151.55,151.54,21.33953151]
[1727336773492,0.2,151.55,151.54,20.01996724]
[1727336774780,0.2,151.55,151.54,6.5989]
[1727336776196,0.2,151.55,151.54,7.91849539]
[1727336776394,0.2,151.55,151.54,21.33954273]
[1727336777008,0.2,151.55,151.54,41.59052273]
[1727336777311,0.2,151.55,151.54,40.27094724]
[1727336778986,0.2,151.55,151.54,45.54392793]
[1727336779314,0.2,151.55,151.54,46.86310679]
[1727336779687,0.2,151.55,151.54,45.54392793]
[1727336780612,0.2,151.55,151.54,40.27094724]
[1727336782093,0.2,151.55,151.54,45.53991078]
[1727336783114,0.2,151.55,151.54,11.99335354]
[1727336783315,0.2,151.55,151.54,6.5989]
[1727336783506,0.2,151.55,151.54,6.12294868]
[1727336786312,0.2,151.55,151.54,20.86352763]
[1727336790895,0.2,151.55,151.54,19.54401592]
[1727336792519,0.2,151.55,151.54,6.12294868]
[1727336794727,0.2,151.55,151.54,7.44248969]
[1727336795019,0.2,151.55,151.54,19.54401592]
[1727336795805,0.2,151.55,151.54,24.81323184]
[1727336797613,0.2,151.55,151.54,26.13264545]
[1727336797931,0.2,151.55,151.54,20.86342953]
[1727336798123,0.2,151.55,151.54,26.13395002]
[1727336798311,0.2,151.55,151.54,24.81453641]
[1727336799004,0.2,151.55,151.54,30.08434283]
[1727336799331,0.2,151.55,151.54,24.81382234]
[1727336799703,0.2,151.55,151.54,26.13332347]
[1727336800926,0.2,151.55,151.54,24.81382234]
[1727336801703,0.2,151.55,151.54,11.3927551]
[1727336801923,0.2,151.55,151.54,6.12294868]
[1727336802129,0.2,151.55,151.54,11.39449725]
[1727336802322,0.2,151.55,151.54,6.12294868]
[1727336802924,0.2,151.55,151.54,19.54401592]
[1727336803129,0.2,151.55,151.54,12.71490206]
[1727336803303,0.2,151.55,151.54,6.12294868]
[1727336805626,0.2,151.55,151.54,7.44266493]
[1727336807031,0.2,151.55,151.54,26.13723243]
[1727336808936,0.2,151.55,151.54,20.86373217]
[1727336809239,0.2,151.55,151.54,19.54401592]
[1727336809531,0.2,151.55,151.54,24.81509425]
[1727336810012,0.2,151.55,151.54,26.13460049]
[1727336811031,0.2,151.55,151.54,26.13444761]
[1727336812713,0.2,151.55,151.54,24.81494137]
[1727336814211,0.2,151.55,151.54,26.13444718]
[1727336814724,0.2,151.55,151.54,24.81494137]
[1727336817635,0.2,151.55,151.54,19.54401592]
[1727336817819,0.2,151.55,151.54,24.81574603]
[1727336818332,0.2,151.55,151.54,11.39467879]
[1727336819943,0.2,151.55,151.54,6.12294868]
[1727336820450,0.2,151.55,151.54,11.3936845]
[1727336820610,0.2,151.55,151.54,24.81475174]
[1727336820817,0.2,151.55,151.54,11.3936845]
[1727336821024,0.2,151.55,151.54,6.12294868]
[1727336821520,0.2,151.55,151.54,11.39402597]
[1727336822039,0.2,151.55,151.54,6.12294868]
[1727336824725,0.2,151.55,151.54,7.44248526]
[1727336825623,0.2,151.55,151.54,6.12294868]
[1727336826463,0.2,151.55,151.54,7.44245406]
[1727336830542,0.2,151.55,151.54,6.12294868]
[1727336832747,0.2,151.55,151.54,27.442374]
[1727336832946,0.2,151.55,151.54,26.12294868]
[1727336833530,0.2,151.55,151.54,27.44224646]
[1727336833731,0.2,151.55,151.54,26.37392868]
[1727336835134,0.2,151.55,151.54,27.69309301]
[1727336835822,0.2,151.55,151.54,26.37392868]
[1727336836227,0.1023316,151.59,151.57,20.25098]
[1727336836452,0.1023316,151.68,151.66,6.5936]
[1727336836746,0.1023316,151.68,151.66,41.33303968]
[1727336837335,0.1023316,151.68,151.66,40.01466724]
[1727336837559,0.1023316,151.68,151.65,23.0788]
[1727336837722,1.42605946,151.68,151.65,23.0788]
[1727336837931,1.42605946,151.68,151.65,16.4848]
[1727336838232,0.1023316,151.68,151.66,6.5936]
[1727336841134,0.1023316,151.68,151.66,7.91217848]
[1727336846138,0.1023316,151.68,151.66,21.33324572]
[1727336848040,0.1023316,151.68,151.66,20.01466724]
[1727336849355,0.1023316,151.68,151.66,40.01466724]
[1727336850039,0.1023316,151.68,151.66,41.33305938]
[1727336851946,0.1023316,151.68,151.66,40.01466724]
[1727336854642,0.1023316,151.68,151.66,6.5936]
[1727336855159,0.1023316,151.68,151.66,26.5936]
[1727336855738,0.1023316,151.68,151.66,27.91215396]
[1727336855933,0.1023316,151.68,151.66,26.5936]
[1727336857359,0.1023316,151.68,151.66,27.91211062]
[1727336857657,0.1023316,151.68,151.66,26.5936]
[1727336857843,0.1023316,151.68,151.66,6.5936]
[1727336860055,0.1023316,151.68,151.65,16.4848]
[1727336860554,0.1023316,151.68,151.65,23.0788]
[1727336860764,1.42605946,151.68,151.65,23.0788]
[1727336861655,0.1023316,151.68,151.66,6.5936]
[1727336862041,1.42605946,151.68,151.66,6.5936]
[1727336862244,1.42605946,151.68,151.6,20.0]
[1727336862459,1.42605946,151.68,151.63,6.5946]
[1727336863258,8.01895946,151.68,151.63,6.5946]
[1727336863444,6.6952316,151.68,151.63,6.5946]
[1727336863953,0.1023316,151.68,151.64,6.5941]
[1727336864262,0.1023316,151.68,151.65,6.5937]
[1727336865161,1.42605946,151.68,151.65,6.5937]
[1727336865644,1.42605946,151.68,151.64,23.0803]
[1727336866252,0.1023316,151.68,151.64,23.0803]
[1727336867158,0.1023316,151.68,151.65,6.5939]
[1727336869467,1.42605946,151.68,151.65,6.5939]
[1727336869957,1.42605946,151.68,151.64,23.0803]
[1727336870355,6.6955316,151.68,151.64,16.4858]
[1727336871036,6.9218574,151.67,151.62,6.5953]
[1727336872149,0.12549,151.66,151.62,6.5953]
[1727336874063,0.3282574,151.67,151.64,6.5944]
[1727336879443,0.3282574,151.67,151.62,13.42106724]
[1727336879645,0.3282574,151.67,151.59,23.0414]
[1727336879646,0.3282574,151.67,151.66,6.5936]
[1727336880970,0.3282574,151.67,151.65,23.0788]
[1727336881345,0.3282574,151.67,151.63,6.5946]
[1727336881547,0.3282574,151.67,151.62,16.4882]
[1727336881757,0.3282574,151.67,151.65,6.594]
[1727336885451,0.3282574,151.67,151.66,6.5936]
[1727336900283,0.3282574,151.67,151.65,6.594]
[1727336900966,0.3282574,151.67,151.66,6.5936]
[1727336903285,0.3282574,151.67,151.65,6.594]
[1727336903988,0.3282574,151.67,151.66,6.5936]
[1727336904487,0.3282574,151.67,151.64,16.4854]
[1727336904488,0.3282574,151.67,151.65,6.594]
[1727336907990,0.3282574,151.67,151.65,7.91270926]
[1727336908193,0.3282574,151.67,151.65,6.594]
[1727336910189,0.3282574,151.67,151.64,16.4854]
[1727336910399,0.3282574,151.67,151.64,23.0798]
[1727336910593,1.65198526,151.67,151.64,23.0798]
[1727336912897,0.3282574,151.67,151.64,23.0798]
[1727336913073,0.3282574,151.67,151.65,6.594]
[1727336913679,0.3282574,151.67,151.66,6.5936]
[1727336914695,0.3282574,151.67,151.66,40.26564724]
[1727336914885,0.1023316,151.68,151.66,34.99013536]
[1727336915091,0.1023316,151.68,151.67,26.84418]
[1727336917295,0.1023316,151.68,151.67,40.26524724]
[1727336918312,0.2574725,151.7,151.69,26.84328]
[1727336918612,0.2574725,151.7,151.69,40.26434724]
[1727336919386,0.2574725,151.7,151.69,55.83614724]
[1727336920388,0.2574725,151.7,151.69,55.71065724]
[1727336920595,0.2574725,151.7,151.69,55.58516724]
[1727336921292,0.2574725,151.7,151.69,42.1641]
[1727336921495,0.2574725,151.7,151.69,55.58516724]
[1727336922298,0.2574725,151.7,151.69,40.01336724]
[1727336922605,0.2574725,151.7,151.69,26.5923]
[1727336924202,0.2574725,151.7,151.69,27.91040681]
[1727336925001,0.2574725,151.7,151.69,26.5923]
[1727336931406,0.2574725,151.7,151.69,27.91040625]
[1727336931712,0.2574725,151.7,151.69,26.5923]
[1727336931913,0.2574725,151.7,151.69,27.91040827]
[1727336934591,0.2574725,151.7,151.69,26.5923]
[1727336934995,0.2574725,151.7,151.69,27.91029477]
[1727336937404,0.2574725,151.7,151.69,26.5923]
[1727336937623,0.2574725,151.7,151.69,40.01336724]
[1727336941299,0.2574725,151.7,151.69,41.58229777]
[1727336941999,0.2574725,151.7,151.69,40.26434724]
[1727336943625,0.2574725,151.7,151.69,40.01336724]
[1727336944914,0.2574725,151.7,151.69,40.26434724]
[1727336946704,0.2574725,151.7,151.69,26.84328]
[1727336946915,0.2574725,151.7,151.69,40.26434724]
[1727336947919,0.3,151.72,151.71,26.84248]
[1727336948127,0.3,151.72,151.71,40.26354724]
[1727336948421,0.3282574,151.76,151.75,26.84068]
[1727336948604,0.3282574,151.76,151.75,40.01076724]
[1727336949207,0.3282574,151.76,151.75,26.5897]
[1727336950407,0.3282574,151.76,151.75,6.5897]
[1727336951610,0.3282574,151.76,151.75,7.90733999]
[1727336953323,0.3282574,151.76,151.75,27.90733999]
[1727336954119,0.3282574,151.76,151.75,26.5897]
[1727336957625,0.3282574,151.76,151.75,6.5897]
[1727336957825,0.3282574,151.76,151.75,26.5897]
[1727336958131,0.3282574,151.76,151.75,27.90725936]
[1727336960901,0.3282574,151.76,151.75,26.5897]
[1727336961825,0.3282574,151.76,151.75,27.90723531]
[1727336962530,0.3282574,151.76,151.75,26.5897]
[1727336962908,0.3282574,151.76,151.75,40.01076724]
[1727336964213,0.3282574,151.76,151.75,41.32830828]
[1727336965615,0.3282574,151.76,151.75,40.01076724]
[1727336966212,0.3282574,151.76,151.75,26.5897]
[1727336971633,0.3282574,151.76,151.75,6.5897]
[1727336973437,0.3282574,151.76,151.74,16.475]
[1727336974515,0.3282574,151.76,151.74,23.065]
[1727336976729,0.3282574,151.76,151.74,16.475]
[1727336980341,0.3282574,151.76,151.73,6.5906]
[1727336984727,1.65198526,151.76,151.73,6.5906]
[1727336985450,0.3282574,151.76,151.73,6.5906]
[1727336987352,0.3282574,151.76,151.72,6.591]
[1727336987928,0.3282574,151.76,151.73,6.5905]
[1727336989253,0.3282574,151.76,151.75,6.5897]
[1727336990653,0.3282574,151.76,151.75,20.01076724]
[1727336991239,0.3282574,151.76,151.75,40.01076724]
[1727336998961,0.3282574,151.76,151.75,26.5897]
[1727336999260,0.3282574,151.76,151.75,6.5897]
[1727337008363,0.3282574,151.76,151.75,6.84068]
[1727337008677,0.3282574,151.76,151.75,20.01076724]
[1727337011570,0.3282574,151.76,151.75,6.5897]
[1727337011769,0.3282574,151.76,151.75,20.01076724]
[1727337013969,0.3282574,151.76,151.75,6.5897]
[1727337019685,0.1023316,151.77,151.76,26.84028]
[1727337019865,0.1023316,151.77,151.76,40.26134724]
[1727337020069,0.2574725,151.79,151.78,40.00946724]
[1727337020367,0.2574725,151.79,151.78,41.32660186]
[1727337020755,0.2574725,151.79,151.78,40.00946724]
[1727337021481,0.2574725,151.79,151.78,26.5884]
[1727337021682,0.2574725,151.79,151.78,40.00946724]
[1727337023366,0.2574725,151.79,151.78,41.32671722]
[1727337024678,0.2574725,151.79,151.78,40.00946724]
[1727337024862,0.2574725,151.79,151.78,41.32659852]
[1727337027178,0.2574725,151.79,151.78,40.00946724]
[1727337027383,0.2574725,151.79,151.78,27.90553374]
[1727337027569,0.2574725,151.79,151.78,41.32660098]
[1727337028075,0.2574725,151.79,151.78,41.32681056]
[1727337028267,0.2574725,151.79,151.78,40.00946724]
[1727337035989,0.2574725,151.79,151.78,41.326808]
[1727337036178,0.2574725,151.79,151.78,40.00946724]
[1727337037675,0.3282574,151.85,151.83,6.5861]
[1727337038775,0.3282574,151.85,151.83,7.90318694]
[1727337039394,0.3282574,151.85,151.83,21.32425418]
[1727337039564,0.3282574,151.85,151.81,16.4672]
[1727337039565,0.3282574,151.85,151.82,20.00766724]
[1727337039769,0.3282574,151.85,151.83,6.5862]
[1727337041169,0.3282574,151.85,151.84,21.32386547]
[1727337041373,0.3282574,151.85,151.84,20.00686724]
[1727337042683,0.3282574,151.85,151.84,21.32378212]
[1727337043298,0.3282574,151.85,151.84,20.00686724]
[1727337044297,0.3282574,151.85,151.84,6.5858]
[1727337045294,0.3282574,151.85,151.83,16.4652]
[1727337045697,0.3282574,151.85,151.83,23.0513]
[1727337046880,0.3282574,151.85,151.83,16.4652]
[1727337048108,0.3282574,151.85,151.8,13.42106724]
[1727337048109,0.3282574,151.85,151.81,6.587]
[1727337048286,6.9137574,151.85,151.8,23.0564]
[1727337049108,0.3282574,151.85,151.81,6.5871]
[1727337052299,0.3282574,151.85,151.82,6.5866]
[1727337052892,0.3282574,151.85,151.83,6.5862]
[1727337055387,0.3282574,151.85,151.8,29.88996724]
[1727337055713,0.3282574,151.85,151.82,6.5866]
[1727337056504,0.3282574,151.85,151.8,16.4689]
[1727337056717,6.9137574,151.85,151.8,23.0564]
[1727337057011,0.3282574,151.85,151.81,6.5871]
[1727337059990,1.65198526,151.85,151.81,6.5871]
[1727337060413,8.23758526,151.85,151.8,23.0564]
[1727337061705,8.23758526,151.85,151.81,6.587]
[1727337062616,1.65198526,151.85,151.74,8.74179973]
[1727337062814,6.5867,151.83,151.77,16.4718]
[1727337063138,1.32372786,151.82,151.79,6.5879]
[1727337063699,0.3282574,151.85,151.77,16.4718]
[1727337063911,6.9140574,151.85,151.8,6.5874]
[1727337064296,1.32372786,151.84,151.8,6.5874]
[1727337065320,7.90962786,151.84,151.79,6.5879]
[1727337066322,6.9137574,151.85,151.8,6.5875]
[1727337066489,0.3282574,151.85,151.79,16.4695]
[1727337066685,7.90992786,151.84,151.79,23.0574]
[1727337067624,6.5862,151.84,151.8,6.5875]
[1727337069400,6.9137574,151.85,151.81,6.587]
[1727337069601,6.9137574,151.85,151.79,29.89056724]
[1727337069602,8.23748526,151.85,151.8,6.5875]
[1727337069816,0.3282574,151.85,151.81,6.5868]
[1727337074922,6.9136574,151.85,151.81,6.5868]
[1727337077017,0.3282574,151.85,151.81,6.5868]
[1727337078716,0.3282574,151.85,151.82,6.5866]
[1727337078912,0.3282574,151.85,151.83,14.73833621]
[1727337079230,0.3282574,151.85,151.84,6.5858]
[1727337079615,0.3282574,151.85,151.83,6.5862]
[1727337079809,0.3282574,151.85,151.83,7.90334143]
[1727337080212,0.3282574,151.85,151.84,6.5858]
[1727337080936,0.3282574,151.85,151.82,16.4668]
[1727337081245,0.3282574,151.85,151.83,6.5862]
[1727337082824,0.3282574,151.85,151.84,6.5858]
[1727337083924,0.3282574,151.85,151.83,6.5859]
[1727337086746,0.3282574,151.85,151.82,16.4668]
[1727337086747,0.3282574,151.85,151.82,23.0534]
[1727337087051,0.3282574,151.85,151.81,6.587]
[1727337087232,0.3282574,151.85,151.79,16.4699]
[1727337087750,6.9137574,151.85,151.8,6.5872]
[1727337087929,0.3282574,151.85,151.81,6.5871]
[1727337088644,0.3282574,151.85,151.79,16.4699]
[1727337088645,0.3282574,151.85,151.8,6.5875]
[1727337089143,6.9136574,151.85,151.8,6.5875]
[1727337089732,0.3282574,151.85,151.81,6.5871]
[1727337092440,6.5866,151.83,151.79,16.4699]
[1727337092948,7.90962786,151.84,151.79,23.0578]
[1727337093130,0.3282574,151.85,151.79,16.4699]
[1727337093452,6.9137574,151.85,151.8,6.5875]
[1727337095847,6.5863,151.83,151.79,16.4699]
[1727337096220,0.3282574,151.85,151.79,16.4699]
[1727337096421,0.3282574,151.85,151.8,7.90475135]
[1727337096832,0.3282574,151.85,151.81,6.5871]
[1727337097946,0.3282574,151.85,151.82,1.31730289]
[1727337098332,0.3282574,151.85,151.83,6.5863]
[1727337099038,0.3282574,151.85,151.81,16.4669]
[1727337099232,0.3282574,151.85,151.82,6.5866]
[1727337104642,0.3282574,151.85,151.81,16.4669]
[1727337105038,6.5863,151.83,151.79,6.588]
[1727337105243,1.32372786,151.84,151.79,6.588]
[1727337105244,1.32372786,151.82,151.79,6.588]
[1727337105444,1.32372786,151.83,151.79,6.588]
[1727337105859,6.5859,151.84,151.79,6.588]
[1727337106252,1.32372786,151.83,151.79,6.588]
[1727337106565,1.32372786,151.83,151.78,16.4708]
[1727337106764,0.25098,151.84,151.78,16.4708]
[1727337106983,6.71139,151.84,151.79,6.5876]
[1727337107154,6.71139,151.84,151.79,7.90510191]
[1727337107676,6.5859,151.84,151.79,7.90510191]
[1727337107969,6.5859,151.84,151.8,6.5875]
[1727337111155,6.6015574,151.85,151.8,6.5875]
[1727337111370,6.6015574,151.85,151.78,29.89186724]
[1727337111569,6.6015574,151.85,151.81,6.5871]
[1727337112576,1.32372786,151.84,151.81,6.5871]
[1727337113363,0.3282574,151.85,151.82,33.42106724]
[1727337113568,0.2574725,151.88,151.87,26.5845]
[1727337113863,0.2574725,151.88,151.87,41.32194362]
[1727337114050,0.2574725,151.88,151.87,57.34114362]
[1727337114256,0.3282574,151.94,151.93,26.5819]
[1727337114478,0.3282574,151.94,151.91,16.4564]
[1727337114657,0.3282574,151.94,151.91,23.0391]
[1727337115162,0.3282574,151.94,151.92,6.5823]
[1727337115364,0.3282574,151.94,151.93,6.5819]
[1727337117576,0.3282574,151.94,151.91,23.0388]
[1727337121876,1.65198526,151.94,151.91,16.4564]
[1727337122389,0.3282574,151.94,151.91,16.4564]
[1727337122771,6.9101574,151.94,151.88,36.46496724]
[1727337122990,0.3282574,151.94,151.9,6.5832]
[1727337123879,1.65198526,151.94,151.88,16.4602]
[1727337124090,6.5828,151.91,151.84,31.7646]
[1727337124277,6.83328,151.93,151.87,6.5845]
[1727337124475,13.4348574,151.94,151.89,6.5836]
[1727337124990,13.4347574,151.94,151.88,16.4593]
[1727337125195,6.8532574,151.94,151.89,6.5833]
[1727337125375,6.8532574,151.94,151.88,16.4593]
[1727337125376,13.4351574,151.94,151.88,23.0434]
[1727337126181,0.25098,151.93,151.88,23.0434]
[1727337126487,6.83308,151.93,151.88,23.0434]
[1727337127203,6.83308,151.93,151.88,16.4593]
[1727337127781,15.98788,151.93,151.88,16.4593]
[1727337127981,6.5824,151.92,151.88,16.4593]
[1727337128490,15.98788,151.93,151.88,16.4593]
[1727337128804,15.98788,151.93,151.88,23.0433]
[1727337129003,15.7369,151.93,151.89,6.5836]
[1727337129204,13.4350574,151.94,151.89,6.5836]
[1727337129405,6.8532574,151.94,151.88,17.77592811]
[1727337129582,6.8532574,151.94,151.9,6.5832]
[1727337131479,6.8532574,151.94,151.91,6.5828]
[1727337131799,6.8532574,151.94,151.92,6.5822]
[1727337131800,0.3282574,151.94,151.92,6.5822]
[1727337132177,0.3282574,151.94,151.9,16.4574]
[1727337132581,0.3282574,151.94,151.92,6.5823]
[1727337133294,0.3282574,151.94,151.91,6.5828]
[1727337133502,0.3282574,151.94,151.9,23.0406]
[1727337134079,0.3282574,151.94,151.91,6.5827]
[1727337135681,0.3282574,151.94,151.9,16.4574]
[1727337135682,0.3282574,151.94,151.85,20.0]
[1727337135880,0.3282574,151.94,151.89,6.5836]
[1727337135881,6.9097574,151.94,151.89,6.5836]
[1727337138300,6.582,151.93,151.88,6.584]
[1727337138490,0.3282574,151.94,151.87,16.461]
[1727337138686,1.57470786,151.93,151.87,16.461]
[1727337138887,6.5828,151.91,151.87,16.461]
[1727337139086,1.32372786,151.9,151.87,16.461]
[1727337139287,0.25098,151.93,151.87,16.461]
[1727337139605,0.25098,151.93,151.87,23.0452]
[1727337139606,0.12549,151.91,151.87,23.0452]
[1727337140496,6.5824,151.92,151.87,23.0452]
[1727337140706,6.5828,151.91,151.87,23.0452]
[1727337141498,1.32372786,151.9,151.84,16.4644]
[1727337141728,1.32372786,151.9,151.85,6.5853]
[1727337142000,6.83468,151.89,151.84,23.0502]
[1727337142609,6.83468,151.89,151.85,6.5854]
[1727337142907,7.90782786,151.88,151.84,16.4644]
[1727337143095,6.83558,151.87,151.82,6.5866]
[1727337143300,6.83558,151.87,151.81,16.4678]
[1727337143301,1.32372786,151.86,151.81,16.4678]
[1727337143475,7.90872786,151.86,151.81,23.0548]
[1727337143804,6.83558,151.87,151.82,6.5866]
[1727337144003,6.5842,151.88,151.84,6.5858]
[1727337144185,0.25098,151.89,151.84,6.5858]
[1727337144897,0.25098,151.89,151.82,1.31712244]
[1727337145200,6.83488,151.89,151.85,6.5854]
[1727337145604,6.83488,151.89,151.84,6.5857]
[1727337145990,7.90782786,151.88,151.83,16.4647]
[1727337146186,6.5851,151.86,151.81,6.5871]
[1727337146382,1.32372786,151.85,151.81,6.5871]
[1727337146895,7.90932786,151.85,151.8,16.4687]
[1727337147503,6.83558,151.87,151.83,6.5862]
[1727337147809,0.25098,151.87,151.83,6.5862]
[1727337147988,6.5842,151.88,151.83,6.5862]
[1727337148193,6.3324,151.9,151.83,1.31718114]
[1727337148390,12.916,151.9,151.85,6.5853]
[1727337148607,6.3324,151.9,151.86,6.5849]
[1727337148906,12.9158,151.9,151.84,23.0494]
[1727337149112,6.3324,151.9,151.86,6.5846]
[1727337149610,6.3324,151.9,151.87,6.5845]
[1727337149813,16.0803,151.91,151.84,29.88496724]
[1727337149985,22.6632,151.91,151.86,6.5849]
[1727337150181,16.0803,151.91,151.85,1.31687247]
[1727337150404,16.0803,151.91,151.87,6.5842]
[1727337150898,1.32372786,151.9,151.86,16.4616]
[1727337151098,16.0803,151.91,151.87,6.5845]
[1727337151310,13.4154574,151.94,151.89,6.5835]
[1727337151902,1.32372786,151.93,151.89,6.5835]
[1727337152699,13.4154574,151.94,151.89,6.5835]
[1727337152900,1.32372786,151.93,151.89,6.5835]
[1727337153192,13.4154574,151.94,151.89,6.5835]
[1727337157608,1.32372786,151.93,151.89,6.5835]
[1727337158107,0.12549,151.92,151.88,16.4596]
[1727337158421,1.32372786,151.91,151.88,16.4596]
[1727337159112,0.12549,151.92,151.88,23.0433]
[1727337159302,1.32372786,151.92,151.89,6.5835]
[1727337159504,0.25098,151.93,151.89,6.5835]
[1727337161611,1.57470786,151.93,151.89,6.5835]
[1727337162999,0.25098,151.93,151.89,6.5835]
[1727337163200,0.25098,151.93,151.88,23.0437]
[1727337163201,7.90622786,151.92,151.88,23.0437]
[1727337163814,0.25098,151.91,151.88,23.0437]
[1727337164014,0.25098,151.91,151.88,16.4596]
[1727337164519,0.25098,151.91,151.88,23.0436]
[1727337169004,0.25098,151.92,151.88,23.0436]
[1727337171927,0.25098,151.91,151.88,23.0436]
[1727337173803,0.25098,151.91,151.88,16.4596]
[1727337175931,0.25098,151.91,151.88,23.0436]
[1727337177023,13.4155574,151.94,151.89,6.5836]
[1727337177223,0.25098,151.93,151.89,6.5836]
[1727337179138,1.32372786,151.92,151.88,23.0436]
[1727337179728,6.83328,151.93,151.88,16.4596]
[1727337179940,6.83328,151.93,151.89,6.5836]
[1727337181340,0.12549,151.93,151.89,6.5836]
[1727337182916,0.12549,151.93,151.88,16.4596]
[1727337183116,0.12549,151.93,151.9,6.5832]
[1727337185013,0.12549,151.92,151.88,23.0433]
[1727337186723,0.12549,151.91,151.88,16.4596]
[1727337186920,1.44921786,151.91,151.88,16.4596]
[1727337187317,0.12549,151.9,151.86,6.5849]
[1727337187530,0.12549,151.9,151.87,6.5845]
[1727337189149,6.70869,151.9,151.86,6.5849]
[1727337189327,1.32372786,151.89,151.86,6.5849]
[1727337190028,0.12549,151.9,151.86,6.5849]
[1727337190242,0.12549,151.9,151.85,16.4632]
[1727337190547,0.12549,151.9,151.87,6.5844]
[1727337191134,0.25098,151.91,151.87,6.5844]
[1727337193031,0.25098,151.91,151.88,6.5841]
[1727337194434,1.32372786,151.91,151.88,6.5841]
[1727337195340,6.83298,151.93,151.89,6.5836]
[1727337197130,1.32372786,151.92,151.89,6.5836]
[1727337197852,6.83298,151.93,151.89,6.5836]
[1727337199846,1.32372786,151.92,151.88,6.5841]
[1727337200354,6.83298,151.93,151.88,6.5841]
[1727337200726,1.32372786,151.92,151.88,6.5841]
[1727337200928,6.83298,151.93,151.88,6.5841]
[1727337203753,6.5827,151.92,151.87,16.4608]
[1727337203929,6.5827,151.92,151.87,23.0453]
[1727337204131,0.3282574,151.94,151.92,35.91068]
[1727337204350,0.3282574,151.94,151.93,6.5819]
[1727337205230,0.3282574,151.94,151.93,7.89791492]
[1727337207855,0.3282574,151.94,151.93,6.5819]
[1727337212442,0.3282574,151.94,151.91,16.4565]
[1727337212748,0.3282574,151.94,151.92,6.5823]
[1727337212934,0.3282574,151.94,151.93,6.5819]
[1727337213536,0.3282574,151.94,151.92,6.5823]
[1727337213734,0.3282574,151.94,151.93,6.5819]
[1727337216035,0.3282574,151.94,151.91,16.4565]
[1727337217443,1.65198526,151.94,151.91,16.4565]
[1727337218874,1.57470786,151.93,151.88,16.4602]
[1727337219170,0.25098,151.93,151.88,16.4602]
[1727337220360,6.83328,151.93,151.88,23.0442]
[1727337220557,6.5824,151.92,151.88,16.4602]
[1727337220804,1.32372786,151.91,151.88,16.4602]
[1727337221070,6.83298,151.93,151.88,23.044]
[1727337223848,6.83298,151.93,151.88,16.4602]
[1727337224157,6.83298,151.93,151.89,6.5836]
[1727337227094,6.83298,151.93,151.88,16.4602]
[1727337227283,6.83298,151.93,151.88,23.0442]
[1727337228165,6.5824,151.92,151.88,23.0442]
[1727337229788,1.32372786,151.91,151.88,16.4602]
[1727337230863,6.5824,151.92,151.88,23.0443]
[1727337233687,1.32372786,151.91,151.88,23.0443]
[1727337234188,6.5824,151.92,151.88,23.0443]
[1727337234487,6.83298,151.93,151.88,23.0443]
[1727337248083,0.3282574,151.94,151.89,1.31679428]
[1727337248289,0.3282574,151.94,151.9,6.5831]
[1727337251287,0.12549,151.93,151.89,6.5836]
[1727337253292,0.3282574,151.94,151.89,1.31664262]
[1727337253599,0.3282574,151.94,151.91,6.5827]
[1727337253904,0.3282574,151.94,151.9,16.4574]
[1727337254888,0.3282574,151.94,151.9,23.0406]
[1727337255492,0.3282574,151.94,151.92,6.5822]
[1727337256093,0.3282574,151.94,151.93,6.5819]
[1727337256301,0.3282574,151.94,151.91,1.31644557]
[1727337256302,0.3282574,151.94,151.92,6.5823]
[1727337256811,0.3282574,151.94,151.93,7.89821736]
[1727337256997,0.3282574,151.94,151.93,6.5819]
[1727337257198,0.3282574,151.94,151.93,7.89814608]
[1727337257703,0.3282574,151.94,151.93,6.5819]
[1727337260813,0.3282574,151.94,151.93,20.00296724]
[1727337261790,0.3282574,151.94,151.93,55.30506724]
[1727337262300,0.1023316,151.95,151.94,26.83248]